bitfinex/quotes_BTCUSD_20250526
["timestamp","ask_amount","ask_price","bid_price","bid_amount"]
[1748289026234,0.20507151,109010.0,109000.0,2.00923447]
[1748289026449,0.20807151,109010.0,109000.0,2.00923447]
[1748289028025,0.20507151,109010.0,109000.0,2.00923447]
[1748289028461,0.20307151,109010.0,109000.0,2.00923447]
[1748289028715,0.20407151,109010.0,109000.0,2.00923447]
[1748289029457,0.20407151,109010.0,109000.0,1.99088661]
[1748289030457,0.21977151,109010.0,109000.0,1.99088661]
[1748289030663,0.20407151,109010.0,109000.0,2.0000605]
[1748289030871,0.20407151,109010.0,109000.0,2.3400605]
[1748289031050,0.02970899,109010.0,109000.0,2.35840802]
[1748289031298,0.01136223,109010.0,109000.0,2.35840802]
[1748289031507,0.03888153,109010.0,109000.0,2.37430802]
[1748289032062,0.03888144,109010.0,109000.0,2.37430802]
[1748289032276,0.00218952,109010.0,109000.0,2.40879035]
[1748289032456,0.02053519,109010.0,109000.0,2.40879035]
[1748289032872,0.01136223,109010.0,109000.0,2.42284492]
[1748289033073,0.02970806,109010.0,109000.0,2.40827898]
[1748289033271,0.00218952,109010.0,109000.0,2.55495898]
[1748289034000,0.0103624,109010.0,109000.0,2.55495898]
[1748289034390,0.0093624,109010.0,109000.0,2.55595898]
[1748289034710,0.0093624,109010.0,109000.0,2.55495898]
[1748289035068,0.0093624,109010.0,109000.0,2.55695898]
[1748289035299,0.0093624,109010.0,109000.0,2.55795898]
[1748289036889,0.01853553,109010.0,109000.0,2.16562298]
[1748289037101,0.23340535,109010.0,109000.0,2.63208921]
[1748289037323,0.21700535,109010.0,109000.0,2.63589639]
[1748289037772,0.03353595,109010.0,109000.0,2.64507011]
[1748289037983,0.00018952,109010.0,109000.0,2.67551096]
[1748289038192,0.00018952,109010.0,109000.0,2.69061096]
[1748289038396,0.01853527,109010.0,109000.0,2.69061096]
[1748289038575,0.00018952,109010.0,109000.0,2.69061096]
[1748289038795,0.00936231,109010.0,109000.0,2.69061096]
[1748289039153,0.00018952,109010.0,109000.0,2.69061096]
[1748289039351,0.00936223,109010.0,109000.0,2.69061096]
[1748289040739,0.00936231,109010.0,109000.0,2.69061096]
[1748289041480,0.00936231,109010.0,109000.0,2.71983448]
[1748289043953,0.00018952,109010.0,109000.0,2.71983448]
[1748289045502,0.00936223,109010.0,109000.0,2.71983448]
[1748289045758,0.00018952,109010.0,109000.0,2.71983448]
[1748289045966,0.00018952,109010.0,109000.0,1.61752292]
[1748289046196,0.00936231,109010.0,109000.0,2.55805448]
[1748289046415,0.01853519,109010.0,109000.0,2.68883448]
[1748289046649,0.00936231,109010.0,109000.0,2.68883448]
[1748289047079,0.01853535,109010.0,109000.0,2.68883448]
[1748289047288,0.01853535,109010.0,109000.0,2.54215448]
[1748289047489,0.01853535,109010.0,109000.0,2.68883448]
[1748289047490,0.00936231,109010.0,109000.0,2.68883448]
[1748289051584,0.00936231,109010.0,109000.0,2.70403448]
[1748289053560,0.00936231,109010.0,109000.0,2.55735448]
[1748289053742,0.00936231,109010.0,109000.0,2.68883448]
[1748289054662,0.01853535,109010.0,109000.0,2.68883448]
[1748289055125,0.04420848,109010.0,109000.0,2.68883448]
[1748289055333,0.03503535,109010.0,109000.0,2.68883448]
[1748289057365,0.03503535,109010.0,109000.0,1.04803952]
[1748289057366,0.22483205,109010.0,109000.0,1.04803952]
[1748289057586,0.23400535,109010.0,109000.0,1.5991953]
[1748289058007,0.23400535,109010.0,109000.0,2.15035108]
[1748289058443,0.23400535,109010.0,109000.0,2.12112756]
[1748289059685,0.32355091,109010.0,109000.0,0.84785778]
[1748289059897,0.32355091,109010.0,109000.0,0.67089278]
[1748289060108,0.32355091,109010.0,109000.0,1.01089278]
[1748289062182,0.32355091,109010.0,109000.0,1.0255389]
[1748289069886,0.32355091,109010.0,109000.0,1.03650722]
[1748289070561,0.47023091,109010.0,109000.0,1.587663]
[1748289070982,0.47023091,109010.0,109000.0,1.03650722]
[1748289075971,0.47023091,109010.0,109000.0,1.0218611]
[1748289077199,0.47023091,109010.0,109000.0,1.03650722]
[1748289080319,0.47023091,109010.0,109000.0,1.587663]
[1748289080732,0.47023091,109010.0,109000.0,1.03650722]
[1748289081147,0.47023091,109010.0,109000.0,1.587663]
[1748289082369,0.47023091,109010.0,109000.0,1.57669468]
[1748289082732,0.47023091,109010.0,109000.0,1.0255389]
[1748289083768,0.43823091,109010.0,109000.0,1.77852927]
[1748289083976,0.01853595,109010.0,109000.0,1.82757696]
[1748289084187,0.16521595,109010.0,109000.0,1.82757696]
[1748289084407,0.35785873,109010.0,109000.0,1.82757696]
[1748289084620,0.16521553,109010.0,109000.0,1.82757696]
[1748289084848,0.17438883,109010.0,109000.0,1.82757696]
[1748289085066,0.17438883,109010.0,109000.0,1.80375712]
[1748289085067,0.3670317,109010.0,109000.0,1.80375712]
[1748289085689,0.17438883,109010.0,109000.0,1.81293084]
[1748289085939,0.02770883,109010.0,109000.0,1.81293084]
[1748289086180,0.02770874,109010.0,109000.0,1.81293084]
[1748289086392,0.00936231,109010.0,109000.0,1.95961084]
[1748289086596,0.01853519,109010.0,109000.0,1.95961084]
[1748289086807,0.02770815,109010.0,109000.0,1.95961084]
[1748289087415,0.01853519,109010.0,109000.0,1.97415169]
[1748289087636,0.02770832,109010.0,109000.0,1.97415169]
[1748289087836,0.02770823,109010.0,109000.0,1.97415169]
[1748289088774,0.03688153,109010.0,109000.0,1.97415169]
[1748289089407,0.03688153,109010.0,109000.0,1.95885169]
[1748289089587,0.2295244,109010.0,109000.0,1.95885169]
[1748289089818,0.03688153,109010.0,109000.0,1.95885169]
[1748289091683,0.04605491,109010.0,109000.0,1.81217169]
[1748289092426,0.22952431,109010.0,109000.0,0.70986013]
[1748289092643,0.04605491,109010.0,109000.0,1.81217169]
[1748289092835,0.22952431,109010.0,109000.0,1.81217169]
[1748289094703,0.02770823,109010.0,109000.0,1.81217169]
[1748289094909,0.03688153,109010.0,109000.0,1.82777169]
[1748289100494,0.02770823,109010.0,109000.0,1.82777169]
[1748289100706,0.03688144,109010.0,109000.0,1.84144255]
[1748289100908,0.02770823,109010.0,109000.0,1.82777169]
[1748289101115,0.03688153,109010.0,109000.0,1.82777169]
[1748289101336,0.02770823,109010.0,109000.0,1.82777169]
[1748289101763,0.03688153,109010.0,109000.0,1.82777169]
[1748289101966,0.02770823,109010.0,109000.0,1.82777169]
[1748289102169,0.03688144,109010.0,109000.0,1.82777169]
[1748289103962,0.03688144,109010.0,109000.0,1.96324366]
[1748289104466,0.00018952,109010.0,109000.0,1.96324366]
[1748289104697,0.00018952,109010.0,109000.0,2.37583817]
[1748289104938,0.00018952,109010.0,109000.0,1.96324366]
[1748289104939,0.00936231,109010.0,109000.0,1.96324366]
[1748289105167,0.00936231,109010.0,109000.0,1.97702554]
[1748289105829,0.01853535,109010.0,109000.0,0.69906829]
[1748289106042,0.01853535,109010.0,109000.0,1.95529629]
[1748289106246,0.02770865,109010.0,109000.0,1.95529629]
[1748289106893,0.02770856,109010.0,109000.0,1.95529629]
[1748289107109,0.02770856,109010.0,109000.0,1.97179629]
[1748289109707,0.02770856,109010.0,109000.0,2.00101981]
[1748289109911,0.03688186,109010.0,109000.0,2.00101981]
[1748289110878,0.03688186,109010.0,109000.0,1.98451981]
[1748289112333,0.02770856,109010.0,109000.0,1.98451981]
[1748289112552,0.02770856,109010.0,109000.0,1.83783981]
[1748289112775,0.03688186,109010.0,109000.0,1.98451981]
[1748289113034,0.03688186,109010.0,109000.0,1.79116939]
[1748289113259,0.47033099,109010.0,109000.0,0.58241066]
[1748289113474,0.47033099,109010.0,109000.0,0.16769952]
[1748289113751,0.47033099,109010.0,109000.0,1.05788666]
[1748289114367,0.47033099,109010.0,109000.0,1.04330785]
[1748289116799,0.47033099,109010.0,109000.0,1.05428327]
[1748289118911,0.76203099,109010.0,109000.0,1.05428327]
[1748289121219,0.61535099,109010.0,109000.0,1.05428327]
[1748289121433,0.76203099,109010.0,109000.0,1.05428327]
[1748289124792,0.76203099,109010.0,109000.0,1.03963856]
[1748289129499,0.61535099,109010.0,109000.0,1.03963856]
[1748289129707,0.59975099,109010.0,109000.0,1.5898257]
[1748289129918,0.74643099,109010.0,109000.0,1.5898257]
[1748289130986,0.74643099,109010.0,109000.0,1.60447041]
[1748289131856,0.58325099,109010.0,109000.0,1.60447041]
[1748289132065,0.72993099,109010.0,109000.0,1.62047041]
[1748289132481,0.58325099,109010.0,109000.0,1.62047041]
[1748289132698,0.72993099,109010.0,109000.0,1.63557041]
[1748289132917,0.72993099,109010.0,109000.0,1.81905664]
[1748289133132,0.72993099,109010.0,109000.0,1.63557041]
[1748289133348,0.72993099,109010.0,109000.0,1.62459499]
[1748289133790,0.64038543,109010.0,109000.0,1.81725544]
[1748289134219,0.63121222,109010.0,109000.0,1.81725544]
[1748289134965,0.63121222,109010.0,109000.0,1.80808122]
[1748289135521,0.62203892,109010.0,109000.0,1.80808122]
[1748289135939,0.63121222,109010.0,109000.0,1.82642958]
[1748289136478,0.63121222,109010.0,109000.0,1.82642975]
[1748289136679,0.33033892,109010.0,109000.0,1.82642975]
[1748289139019,0.33033892,109010.0,109000.0,1.62459499]
[1748289139255,0.33033892,109010.0,109000.0,1.59349499]
[1748289139457,0.33033892,109010.0,109000.0,1.04330785]
[1748289139864,0.34683892,109010.0,109000.0,1.04330785]
[1748289141884,0.34683892,109010.0,109000.0,1.59349499]
[1748289142517,0.43638448,109010.0,109000.0,1.04330785]
[1748289142738,0.43638448,109010.0,109000.0,1.02866314]
[1748289143463,0.33033892,109010.0,109000.0,1.57885028]
[1748289143691,0.1928318,109010.0,109000.0,1.8127847]
[1748289143915,0.3395118,109010.0,109000.0,1.8127847]
[1748289144129,0.18365892,109010.0,109000.0,1.80361073]
[1748289144350,0.33033892,109010.0,109000.0,1.80361073]
[1748289144965,0.18365892,109010.0,109000.0,1.81278478]
[1748289145636,0.18365892,109010.0,109000.0,1.82195875]
[1748289145857,0.18365892,109010.0,109000.0,1.81278478]
[1748289148803,0.18365892,109010.0,109000.0,1.80361073]
[1748289150917,0.18365892,109010.0,109000.0,1.82195892]
[1748289153535,0.20200577,109010.0,109000.0,1.84030661]
[1748289153742,0.2111789,109010.0,109000.0,1.84030678]
[1748289153951,0.2111789,109010.0,109000.0,1.84030636]
[1748289156958,0.0093624,109010.0,109000.0,1.85484679]
[1748289157182,0.01853544,109010.0,109000.0,1.85484679]
[1748289157602,0.0093624,109010.0,109000.0,1.85484679]
[1748289157806,0.01853536,109010.0,109000.0,1.88407031]
[1748289158463,0.0093624,109010.0,109000.0,1.88407031]
[1748289158690,0.00018952,109010.0,109000.0,1.88407031]
[1748289159720,0.00018952,109010.0,109000.0,1.89753137]
[1748289161990,0.00018952,109010.0,109000.0,1.98707693]
[1748289165071,0.00018952,109010.0,109000.0,2.13375693]
[1748289165514,0.00936223,109010.0,109000.0,2.13375693]
[1748289166344,0.00018952,109010.0,109000.0,2.13375693]
[1748289168648,0.00018952,109010.0,109000.0,1.98707693]
[1748289168863,0.00018952,109010.0,109000.0,2.28583693]
[1748289173774,0.01834398,109020.0,109010.0,0.56552964]
[1748289173991,0.21737101,109030.0,109020.0,0.21096985]
[1748289174207,0.21742083,109030.0,109020.0,1.43697299]
[1748289174456,0.20192083,109030.0,109020.0,1.43697299]
[1748289175106,0.21822083,109030.0,109020.0,1.43697299]
[1748289175769,0.21822083,109030.0,109020.0,1.44614519]
[1748289176186,0.20192083,109030.0,109020.0,1.45531731]
[1748289176420,0.20292083,109030.0,109020.0,1.45531731]
[1748289176857,0.20492083,109030.0,109020.0,1.45531731]
[1748289178571,0.00304982,109030.0,109020.0,1.45531731]
[1748289178798,0.01222101,109030.0,109020.0,1.81061672]
[1748289179084,0.02139246,109030.0,109020.0,1.81061672]
[1748289180521,0.03056407,109030.0,109020.0,1.81061672]
[1748289180945,0.03056407,109030.0,109020.0,1.79531672]
[1748289183155,0.03973577,109030.0,109020.0,1.79531672]
[1748289183410,0.22317152,109030.0,109020.0,1.79531672]
[1748289183793,0.03973577,109030.0,109020.0,1.79531672]
[1748289184014,0.03056407,109030.0,109020.0,1.79531672]
[1748289184228,0.03056399,109030.0,109020.0,1.79531672]
[1748289184626,0.02139246,109030.0,109020.0,1.79531672]
[1748289184832,0.02139246,109030.0,109020.0,1.82621672]
[1748289185308,0.01222101,109030.0,109020.0,1.81051672]
[1748289185547,0.22375462,109040.0,109030.0,0.55095009]
[1748289185548,0.01834062,109040.0,109030.0,0.55095009]
[1748289185769,0.01834062,109040.0,109030.0,2.32714037]
[1748289185770,0.01834053,109040.0,109030.0,2.32714037]
[1748289185996,0.51658257,109050.0,109030.0,2.34168122]
[1748289186225,0.23399152,109050.0,109040.0,1.97107243]
[1748289186436,0.23399152,109050.0,109040.0,1.96877997]
[1748289186648,0.23399152,109050.0,109040.0,1.9596092]
[1748289186860,0.22482184,109050.0,109040.0,1.77619028]
[1748289187364,0.22682184,109050.0,109040.0,1.77619028]
[1748289187624,0.01121974,109050.0,109040.0,1.97422242]
[1748289187855,0.02038892,109050.0,109040.0,2.52924484]
[1748289188075,0.22213097,109050.0,109040.0,2.47920405]
[1748289188348,0.23953097,109050.0,109040.0,2.48837466]
[1748289188532,0.23953097,109050.0,109040.0,2.47376144]
[1748289188736,0.24770107,109050.0,109040.0,2.48293196]
[1748289188965,0.24770107,109050.0,109040.0,2.4921024]
[1748289189167,0.23853164,109050.0,109040.0,2.47676144]
[1748289189303,0.22936196,109050.0,109040.0,2.47676144]
[1748289189501,0.22736196,109050.0,109040.0,2.47676144]
[1748289189726,0.22736196,109050.0,109040.0,2.48893196]
[1748289189934,0.21096196,109050.0,109040.0,2.4981024]
[1748289190152,0.21096196,109050.0,109040.0,2.50723007]
[1748289190361,0.00921932,109050.0,109040.0,2.53892948]
[1748289190561,0.00921924,109050.0,109040.0,2.53892948]
[1748289190771,0.01838892,109050.0,109040.0,2.53892948]
[1748289191180,0.00921924,109050.0,109040.0,2.53892948]
[1748289191386,0.01838892,109050.0,109040.0,2.53892948]
[1748289191587,0.02755868,109050.0,109040.0,2.53892948]
[1748289191788,0.00921924,109050.0,109040.0,2.53892948]
[1748289192037,0.02755869,109050.0,109040.0,2.53892948]
[1748289192579,0.03672862,109050.0,109040.0,2.52332948]
[1748289192796,0.03672862,109050.0,109040.0,2.50722948]
[1748289194005,0.04589864,109050.0,109040.0,2.50722948]
[1748289195308,0.22930074,109050.0,109040.0,2.50722948]
[1748289196008,0.04589864,109050.0,109040.0,2.50722948]
[1748289197551,0.22930074,109050.0,109040.0,2.50722948]
[1748289197968,0.24440141,109050.0,109040.0,2.35141913]
[1748289198175,0.24440141,109050.0,109040.0,2.49805913]
[1748289198391,0.23523181,109050.0,109040.0,1.37934389]
[1748289198592,0.23523181,109050.0,109040.0,2.48888869]
[1748289199011,0.24246196,109050.0,109040.0,2.32390781]
[1748289199227,0.23329203,109050.0,109040.0,2.47971867]
[1748289199671,0.08329203,109050.0,109040.0,2.47971867]
[1748289199876,0.08329203,109050.0,109040.0,2.4797185]
[1748289200083,0.08329203,109050.0,109040.0,2.49429163]
[1748289200918,0.07412193,109050.0,109040.0,2.14589108]
[1748289201129,0.07412193,109050.0,109040.0,2.33848094]
[1748289201341,0.07412193,109050.0,109040.0,2.14589108]
[1748289202375,0.07412193,109050.0,109040.0,2.32931]
[1748289202686,0.07412193,109050.0,109040.0,2.14589108]
[1748289203306,0.16366749,109050.0,109040.0,1.05794294]
[1748289204404,0.16366749,109050.0,109040.0,1.05430805]
[1748289205124,0.16366749,109050.0,109040.0,1.0540669]
[1748289206551,0.16366749,109050.0,109040.0,1.60425404]
[1748289207887,0.16366749,109050.0,109040.0,1.0540669]
[1748289210812,0.16366749,109050.0,109040.0,1.05770179]
[1748289211017,0.16366749,109050.0,109040.0,1.60788893]
[1748289220090,0.16366749,109050.0,109040.0,1.33236653]
[1748289224429,0.16366749,109050.0,109040.0,1.74479247]
[1748289224982,0.16366749,109050.0,109040.0,1.7356648]
[1748289232672,0.16366749,109050.0,109040.0,1.32323886]
[1748289233063,0.16366749,109050.0,109040.0,1.30866573]
[1748289236235,0.16366749,109050.0,109040.0,1.72109167]
[1748289244334,0.45536749,109050.0,109040.0,1.17061073]
[1748289244553,0.45536749,109050.0,109040.0,0.34575885]
[1748289244765,0.45536749,109050.0,109040.0,1.17061073]
[1748289246009,0.45536749,109050.0,109040.0,1.18524379]
[1748289248640,0.45536749,109050.0,109040.0,1.19621647]
[1748289250170,0.45036749,109050.0,109040.0,1.19621647]
[1748289250893,0.43396749,109050.0,109040.0,1.19621647]
[1748289251331,0.43396749,109050.0,109040.0,1.31263562]
[1748289251332,0.41886749,109050.0,109040.0,1.31263562]
[1748289251546,0.56550749,109050.0,109040.0,1.32763562]
[1748289251965,0.56550749,109050.0,109040.0,1.29183262]
[1748289252309,0.56550749,109050.0,109040.0,1.21693362]
[1748289252516,0.56550749,109050.0,109040.0,1.20596094]
[1748289252692,0.56550749,109050.0,109040.0,1.19096094]
[1748289253864,0.41886749,109050.0,109040.0,1.19096094]
[1748289254066,0.56550749,109050.0,109040.0,1.20596094]
[1748289254304,0.56550749,109050.0,109040.0,1.56166094]
[1748289254515,0.56550749,109050.0,109040.0,1.54596094]
[1748289256593,0.41886749,109050.0,109040.0,1.54596094]
[1748289256795,0.56550749,109050.0,109040.0,1.54596094]
[1748289261535,0.56550749,109050.0,109040.0,0.70610906]
[1748289261745,0.56550749,109050.0,109040.0,1.46668194]
[1748289261965,0.58130749,109050.0,109040.0,1.46668194]
[1748289262388,0.56550749,109050.0,109040.0,1.46668194]
[1748289262570,0.56550749,109050.0,109040.0,1.47596182]
[1748289262779,0.41886749,109050.0,109040.0,1.47596182]
[1748289262973,0.56550749,109050.0,109040.0,1.47596182]
[1748289265462,0.56550749,109050.0,109040.0,0.65110994]
[1748289265602,0.56550749,109050.0,109040.0,1.41796082]
[1748289265603,0.58130749,109050.0,109040.0,1.41796082]
[1748289267908,0.58130749,109050.0,109040.0,1.40782982]
[1748289270535,0.58130749,109050.0,109040.0,0.58297794]
[1748289270750,0.58130749,109050.0,109040.0,1.40782982]
[1748289279889,0.59630749,109050.0,109040.0,1.40782982]
[1748289280610,0.58130749,109050.0,109040.0,1.40782982]
[1748289283126,0.58130749,109050.0,109040.0,1.39319676]
[1748289284576,0.41886749,109050.0,109040.0,1.39319676]
[1748289284795,0.56550749,109050.0,109040.0,1.40929676]
[1748289284997,0.56550749,109050.0,109040.0,1.8217227]
[1748289285208,0.56550749,109050.0,109040.0,1.40929676]
[1748289287750,0.41886749,109050.0,109040.0,1.42589676]
[1748289287967,0.56550749,109050.0,109040.0,1.42589676]
[1748289290669,0.27380749,109050.0,109040.0,1.42589676]
[1748289293936,0.12716749,109050.0,109040.0,1.42589676]
[1748289294146,0.27380749,109050.0,109040.0,1.42589676]
[1748289295463,0.12716749,109050.0,109040.0,1.42589676]
[1748289295703,0.27380749,109050.0,109040.0,1.42589676]
[1748289296630,0.12716749,109050.0,109040.0,1.42589676]
[1748289296836,0.27380749,109050.0,109040.0,1.42589676]
[1748289300534,0.27380749,109050.0,109040.0,1.40929676]
[1748289302009,0.12716749,109050.0,109040.0,1.42519676]
[1748289302227,0.27380749,109050.0,109040.0,1.42519676]
[1748289303216,0.18426193,109050.0,109040.0,1.42519676]
[1748289304047,0.03762193,109050.0,109040.0,1.8376227]
[1748289304249,0.03762193,109050.0,109040.0,1.42519676]
[1748289304453,0.18426193,109050.0,109040.0,1.42519676]
[1748289305987,0.18426193,109050.0,109040.0,1.60861568]
[1748289306202,0.18426193,109050.0,109040.0,1.42519676]
[1748289308751,0.03762193,109050.0,109040.0,1.60861568]
[1748289308938,0.18426193,109050.0,109040.0,1.42519676]
[1748289311393,0.18426193,109050.0,109040.0,2.03021248]
[1748289312787,0.03762193,109050.0,109040.0,2.03021248]
[1748289312995,0.03762193,109050.0,109040.0,2.03938325]
[1748289313613,0.03762193,109050.0,109040.0,2.04855386]
[1748289313827,0.03762193,109050.0,109040.0,2.04855394]
[1748289314478,0.03762193,109050.0,109040.0,2.05772455]
[1748289315164,0.03762193,109050.0,109040.0,2.04844467]
[1748289316515,0.03762193,109050.0,109040.0,2.03927406]
[1748289317107,0.04679186,109050.0,109040.0,2.05761519]
[1748289317579,0.04679186,109050.0,109040.0,2.0209326]
[1748289319037,0.04679186,109050.0,109040.0,2.03010337]
[1748289320251,0.03762193,109050.0,109040.0,2.03010337]
[1748289320467,0.03762193,109050.0,109040.0,2.03927406]
[1748289322345,0.03762193,109050.0,109040.0,2.04844467]
[1748289322575,0.04679186,109050.0,109040.0,2.05761511]
[1748289324349,0.06513156,109050.0,109040.0,2.05761511]
[1748289324690,0.02750963,109050.0,109040.0,2.0576146]
[1748289325655,0.22008183,109050.0,109040.0,2.0576146]
[1748289326102,0.02750963,109050.0,109040.0,2.0576146]
[1748289326292,0.21091173,109050.0,109040.0,2.0576146]
[1748289326946,0.22008183,109050.0,109040.0,2.0576146]
[1748289328523,0.22008183,109050.0,109040.0,2.04844425]
[1748289329711,0.22008183,109050.0,109040.0,2.03927381]
[1748289330506,0.22008183,109050.0,109040.0,2.04844433]
[1748289331493,0.01833911,109050.0,109040.0,2.05761468]
[1748289331711,0.02750896,109050.0,109040.0,2.05761468]
[1748289331920,0.03667889,109050.0,109040.0,2.05761468]
[1748289332425,0.22925109,109050.0,109040.0,2.05761468]
[1748289332636,0.04584891,109050.0,109040.0,2.05761468]
[1748289333074,0.22925101,109050.0,109040.0,2.05761468]
[1748289334268,0.22925168,109050.0,109040.0,2.05761468]
[1748289335839,0.22925168,109050.0,109040.0,2.04844433]
[1748289336197,0.220082,109050.0,109040.0,2.04844433]
[1748289336410,0.22008158,109050.0,109040.0,2.04844433]
[1748289338281,0.21091198,109050.0,109040.0,2.03254433]
[1748289340379,0.20174213,109050.0,109040.0,1.98893251]
[1748289340606,0.20174213,109050.0,109040.0,1.9981032]
[1748289343870,0.20174213,109050.0,109040.0,2.02307372]
[1748289344097,0.20174213,109050.0,109040.0,2.0139032]
[1748289344339,0.34664923,109060.0,109050.0,0.54174172]
[1748289344340,0.20172322,109060.0,109050.0,0.54174172]
[1748289344558,0.2205598,109060.0,109050.0,2.4706357]
[1748289344813,0.2205598,109060.0,109050.0,2.49600538]
[1748289345040,0.2205598,109060.0,109050.0,2.4706357]
[1748289345256,0.21139088,109060.0,109050.0,2.4706357]
[1748289345676,0.21139088,109060.0,109050.0,2.4716357]
[1748289345885,0.21139088,109060.0,109050.0,2.4558357]
[1748289346087,0.21139088,109060.0,109050.0,2.46500572]
[1748289346422,0.21139088,109060.0,109050.0,2.46600572]
[1748289347779,0.20222187,109060.0,109050.0,2.45683587]
[1748289350393,0.21752187,109060.0,109050.0,2.45683587]
[1748289350688,0.20222187,109060.0,109050.0,2.45683587]
[1748289353369,0.19305278,109060.0,109050.0,2.44766594]
[1748289354768,0.19305278,109060.0,109050.0,2.45683587]
[1748289361737,0.19305278,109060.0,109050.0,2.46600563]
[1748289361949,0.19305278,109060.0,109050.0,2.45683587]
[1748289364627,0.22465278,109060.0,109050.0,1.84266788]
[1748289364854,0.31419834,109060.0,109050.0,1.84266788]
[1748289366149,0.31419834,109060.0,109050.0,1.017816]
[1748289366399,0.31419834,109060.0,109050.0,1.84266788]
[1748289367081,0.19305278,109060.0,109050.0,2.47916594]
[1748289367329,0.02800518,109060.0,109050.0,2.49750539]
[1748289367549,0.02800509,109060.0,109050.0,2.6532749]
[1748289368300,0.03717427,109060.0,109050.0,2.6532749]
[1748289369614,0.22055956,109060.0,109050.0,2.6532749]
[1748289369815,0.22055956,109060.0,109050.0,2.63493579]
[1748289370095,0.22055956,109060.0,109050.0,2.64410555]
[1748289370499,0.22055956,109060.0,109050.0,2.65327523]
[1748289372821,0.2113908,109060.0,109050.0,2.63493579]
[1748289373002,0.2113908,109060.0,109050.0,2.06030985]
[1748289373003,0.20222179,109060.0,109050.0,2.06030985]
[1748289373250,0.2082527,109060.0,109050.0,1.84266788]
[1748289373470,0.2235527,109060.0,109050.0,1.84266788]
[1748289373899,0.31309826,109060.0,109050.0,1.84266788]
[1748289375787,0.45969826,109060.0,109050.0,1.84266788]
[1748289379149,0.44439826,109060.0,109050.0,1.84266788]
[1748289380093,0.46039826,109060.0,109050.0,1.84266788]
[1748289382255,0.42919826,109060.0,109050.0,1.84266788]
[1748289382763,0.42919826,109060.0,109050.0,2.43849592]
[1748289382944,0.42919826,109060.0,109050.0,2.25509382]
[1748289383320,0.28259826,109060.0,109050.0,2.25509382]
[1748289383522,0.42919826,109060.0,109050.0,2.25509382]
[1748289383805,0.42919826,109060.0,109050.0,1.84266788]
[1748289384020,0.42919826,109060.0,109050.0,1.87276788]
[1748289384355,0.42919826,109060.0,109050.0,2.05616998]
[1748289385213,0.3396527,109060.0,109050.0,1.85776788]
[1748289386213,0.3396527,109060.0,109050.0,1.8514387]
[1748289387044,0.3555527,109060.0,109050.0,1.8514387]
[1748289388687,0.46039826,109060.0,109050.0,1.8514387]
[1748289388908,0.46039826,109060.0,109050.0,0.42319676]
[1748289389661,0.75209826,109060.0,109050.0,0.42319676]
[1748289390261,0.75209826,109060.0,109050.0,0.84658606]
[1748289390705,0.60549826,109060.0,109050.0,0.84658606]
[1748289390927,0.59019826,109060.0,109050.0,1.52240206]
[1748289391147,0.72089826,109060.0,109050.0,1.934828]
[1748289391364,0.72089826,109060.0,109050.0,1.52240206]
[1748289391578,0.72089826,109060.0,109050.0,1.54195652]
[1748289393958,0.72089826,109060.0,109050.0,1.26684924]
[1748289394371,0.72089826,109060.0,109050.0,1.25094924]
[1748289395459,0.75209826,109060.0,109050.0,0.90066024]
[1748289395869,0.75209826,109060.0,109050.0,0.74528324]
[1748289400862,0.75161229,109060.0,109050.0,0.74528324]
[1748289411765,0.73611229,109060.0,109050.0,0.74528324]
[1748289412377,0.73615229,109060.0,109050.0,0.74528324]
[1748289412630,0.58951229,109060.0,109050.0,0.74528324]
[1748289412835,0.72045229,109060.0,109050.0,0.74528324]
[1748289413943,0.72045229,109060.0,109050.0,1.02018342]
[1748289415385,0.57381229,109060.0,109050.0,1.03678342]
[1748289415846,0.72045229,109060.0,109050.0,1.05328342]
[1748289416008,0.72045229,109060.0,109050.0,0.77837904]
[1748289416605,0.19256673,109060.0,109050.0,1.11837904]
[1748289416725,0.33920673,109060.0,109050.0,1.30178114]
[1748289416946,0.33003755,109060.0,109050.0,1.11837904]
[1748289417145,0.18339755,109060.0,109050.0,1.11837904]
[1748289417354,0.33003755,109060.0,109050.0,1.11837904]
[1748289417940,0.33003755,109060.0,109050.0,1.10376122]
[1748289420062,0.18339755,109060.0,109050.0,1.10376122]
[1748289420249,0.33003755,109060.0,109050.0,1.10376122]
[1748289421265,0.33003755,109060.0,109050.0,1.29633334]
[1748289421482,0.33003755,109060.0,109050.0,1.10376122]
[1748289423727,0.33003755,109060.0,109050.0,1.28716332]
[1748289423936,0.33003755,109060.0,109050.0,1.29633334]
[1748289424146,0.33003755,109060.0,109050.0,1.10376122]
[1748289424493,0.33003755,109060.0,109050.0,1.28716332]
[1748289424919,0.33003755,109060.0,109050.0,1.29633342]
[1748289425558,0.19256673,109060.0,109050.0,1.31467303]
[1748289425781,0.34837565,109060.0,109050.0,1.3146732]
[1748289426832,0.33920673,109060.0,109050.0,1.29633342]
[1748289427310,0.33920673,109060.0,109050.0,1.27983342]
[1748289427506,0.33920673,109060.0,109050.0,1.28900344]
[1748289427922,0.33003755,109060.0,109050.0,0.52092082]
[1748289428131,0.36143755,109060.0,109050.0,1.07066122]
[1748289428484,0.34513755,109060.0,109050.0,1.07066122]
[1748289430291,0.43468311,109060.0,109050.0,1.07066122]
[1748289432297,0.45038311,109060.0,109050.0,1.07066122]
[1748289433101,0.45038311,109060.0,109050.0,1.08527681]
[1748289440158,0.45038311,109060.0,109050.0,1.36029275]
[1748289444875,0.45038311,109060.0,109050.0,1.02029275]
[1748289445089,0.45038311,109060.0,109050.0,0.43776458]
[1748289445873,0.45038311,109060.0,109050.0,0.43412006]
[1748289446932,0.51376268,109060.0,109050.0,0.43412006]
[1748289447081,0.51376268,109060.0,109050.0,0.84649823]
[1748289447303,0.45038311,109060.0,109050.0,0.84649823]
[1748289450016,0.45038311,109060.0,109050.0,0.57161555]
[1748289450231,0.30374311,109060.0,109050.0,0.57161555]
[1748289450468,0.45038311,109060.0,109050.0,0.57161555]
[1748289458855,0.43468311,109060.0,109050.0,0.57161555]
[1748289459055,0.43468311,109060.0,109050.0,0.95002855]
[1748289459473,0.43468311,109060.0,109050.0,0.80645455]
[1748289463874,0.28804311,109060.0,109050.0,0.80645455]
[1748289464078,0.43468311,109060.0,109050.0,0.80645455]
[1748289465290,0.43468311,109060.0,109050.0,0.82107014]
[1748289470059,0.43468311,109060.0,109050.0,1.09597376]
[1748289471186,0.43468311,109060.0,109050.0,1.08500269]
[1748289471524,0.41958311,109060.0,109050.0,1.08500269]
[1748289473356,0.27294311,109060.0,109050.0,1.08500269]
[1748289473572,0.41958311,109060.0,109050.0,1.11660269]
[1748289474205,0.41958311,109060.0,109050.0,1.10100269]
[1748289475151,0.27294311,109060.0,109050.0,1.10100269]
[1748289475379,0.41958311,109060.0,109050.0,1.11660269]
[1748289475507,0.27294311,109060.0,109050.0,1.11660269]
[1748289475706,0.41958311,109060.0,109050.0,1.11660269]
[1748289476003,0.41958311,109060.0,109050.0,1.10100269]
[1748289480291,0.41958311,109060.0,109050.0,1.08500269]
[1748289481493,0.41958311,109060.0,109050.0,1.10090269]
[1748289482058,0.27294311,109060.0,109050.0,1.11620269]
[1748289482246,0.41958311,109060.0,109050.0,1.11620269]
[1748289486329,0.18339755,109060.0,109050.0,1.11620269]
[1748289486511,0.33003755,109060.0,109050.0,1.11620269]